[Event "Titled Tuesday Blitz August 08 Early 2023"]
[White "Kamsky, Gata"]
[Black "Rustemov, Alexander"]
[WhiteFideId "2000024"]
[BlackFideId "4119002"]
[WhiteElo "2955"]
[BlackElo "2829"]
[Result "1/2-1/2"]
[Round "10"]
[TimeControl "180+1"]
[Date "2023.08.08"]
[WhiteClock "0:00:11"]
[BlackClock "0:00:25"]
[Board "21"]

1. e4 {[%clk 0:03:00]}  e6 {[%clk 0:02:57]} 2. Qe2 {[%clk 0:02:56]}  c5 {[%clk 0:02:56]} 3. f4 {[%clk 0:02:53]}  Nc6 {[%clk 0:02:57]} 4. Nf3 {[%clk 0:02:53]}  d5 {[%clk 0:02:55]} 5. exd5 {[%clk 0:02:50]}  Qxd5 {[%clk 0:02:53]} 6. Nc3 {[%clk 0:02:50]}  Qd7 {[%clk 0:02:50]} 7. g3 {[%clk 0:02:50]}  b6 {[%clk 0:02:49]} 8. Bg2 {[%clk 0:02:49]}  Bb7 {[%clk 0:02:49]} 9. f5 {[%clk 0:02:45]}  O-O-O {[%clk 0:02:16]} 10. fxe6 {[%clk 0:02:45]}  Qxe6 {[%clk 0:02:09]} 11. Qxe6+ {[%clk 0:02:44]}  fxe6 {[%clk 0:02:10]} 12. Ng5 {[%clk 0:02:43]}  Nd4 {[%clk 0:02:07]} 13. Bxb7+ {[%clk 0:02:42]}  Kxb7 {[%clk 0:02:07]} 14. Kd1 {[%clk 0:02:42]}  Nh6 {[%clk 0:02:03]} 15. d3 {[%clk 0:02:39]}  Be7 {[%clk 0:01:54]} 16. Nge4 {[%clk 0:02:36]}  Nhf5 {[%clk 0:01:48]} 17. b3 {[%clk 0:02:25]}  Kc6 {[%clk 0:01:44]} 18. Ne2 {[%clk 0:02:15]}  Rhf8 {[%clk 0:01:33]} 19. c3 {[%clk 0:02:11]}  Nb5 {[%clk 0:01:25]} 20. Kc2 {[%clk 0:01:55]}  Nbd6 {[%clk 0:01:24]} 21. Nf4 {[%clk 0:01:53]}  Kd7 {[%clk 0:01:22]} 22. Re1 {[%clk 0:01:50]}  Rde8 {[%clk 0:01:22]} 23. Bd2 {[%clk 0:01:48]}  Nxe4 {[%clk 0:01:21]} 24. Rxe4 {[%clk 0:01:48]}  Bd6 {[%clk 0:01:21]} 25. Nh3 {[%clk 0:01:45]}  h6 {[%clk 0:01:19]} 26. Rae1 {[%clk 0:01:42]}  Rf6 {[%clk 0:01:15]} 27. Nf4 {[%clk 0:01:28]}  Bxf4 {[%clk 0:01:14]} 28. Bxf4 {[%clk 0:01:28]}  Nd6 {[%clk 0:01:10]} 29. R4e2 {[%clk 0:01:26]}  g5 {[%clk 0:01:07]} 30. Be5 {[%clk 0:01:26]}  Rf3 {[%clk 0:01:06]} 31. g4 {[%clk 0:01:25]}  Nf7 {[%clk 0:00:55]} 32. Bg3 {[%clk 0:01:25]}  Rf6 {[%clk 0:00:43]} 33. a4 {[%clk 0:01:12]}  a6 {[%clk 0:00:43]} 34. Rd2 {[%clk 0:01:06]}  Kc6 {[%clk 0:00:41]} 35. d4 {[%clk 0:01:04]}  cxd4 {[%clk 0:00:41]} 36. Rxd4 {[%clk 0:01:04]}  e5 {[%clk 0:00:41]} 37. Rc4+ {[%clk 0:01:04]}  Kb7 {[%clk 0:00:39]} 38. Rce4 {[%clk 0:01:03]}  Rfe6 {[%clk 0:00:39]} 39. Rf1 {[%clk 0:01:02]}  Nd6 {[%clk 0:00:39]} 40. Re3 {[%clk 0:01:00]}  b5 {[%clk 0:00:39]} 41. axb5 {[%clk 0:00:47]}  axb5 {[%clk 0:00:40]} 42. Ref3 {[%clk 0:00:45]}  Kc6 {[%clk 0:00:37]} 43. Ra1 {[%clk 0:00:41]}  Ne4 {[%clk 0:00:36]} 44. Rf7 {[%clk 0:00:38]}  Nxg3 {[%clk 0:00:34]} 45. hxg3 {[%clk 0:00:37]}  e4 {[%clk 0:00:34]} 46. Kd2 {[%clk 0:00:34]}  e3+ {[%clk 0:00:33]} 47. Ke2 {[%clk 0:00:34]}  Kd5 {[%clk 0:00:29]} 48. Rd1+ {[%clk 0:00:30]}  Kc6 {[%clk 0:00:27]} 49. Rdd7 {[%clk 0:00:28]}  Re4 {[%clk 0:00:26]} 50. Rc7+ {[%clk 0:00:26]}  Kb6 {[%clk 0:00:26]} 51. Rb7+ {[%clk 0:00:27]}  Kc6 {[%clk 0:00:27]} 52. Rfc7+ {[%clk 0:00:26]}  Kd6 {[%clk 0:00:27]} 53. Rh7 {[%clk 0:00:24]}  Rxg4 {[%clk 0:00:27]} 54. Rxh6+ {[%clk 0:00:24]}  Kc5 {[%clk 0:00:27]} 55. Rc7+ {[%clk 0:00:15]}  Kd5 {[%clk 0:00:26]} 56. Rd7+ {[%clk 0:00:15]}  Kc5 {[%clk 0:00:24]} 57. Rc7+ {[%clk 0:00:15]}  Kd5 {[%clk 0:00:25]} 58. Rd7+ {[%clk 0:00:14]}  Kc5 {[%clk 0:00:25]} 59. Rc7+ {[%clk 0:00:11]} 1/2-1/2


[Site "https://www.chess.com"]

[Event "Titled Tuesday Blitz August 08 Early 2023"]
[White "Vokhidov, Shamsiddin"]
[Black "Sychev, Klementy"]
[WhiteFideId "14204223"]
[BlackFideId "4114060"]
[WhiteElo "2894"]
[BlackElo "2781"]
[Result "1-0"]
[Round "10"]
[TimeControl "180+1"]
[Date "2023.08.08"]
[WhiteClock "0:00:50"]
[BlackClock "0:00:00"]
[Board "24"]

1. e4 {[%clk 0:03:00]}  c5 {[%clk 0:03:00]} 2. Nf3 {[%clk 0:03:01]}  d6 {[%clk 0:03:01]} 3. d4 {[%clk 0:03:00]}  cxd4 {[%clk 0:03:02]} 4. Nxd4 {[%clk 0:03:01]}  Nf6 {[%clk 0:03:02]} 5. Nc3 {[%clk 0:03:02]}  g6 {[%clk 0:03:03]} 6. f3 {[%clk 0:03:01]}  Bg7 {[%clk 0:03:03]} 7. Be3 {[%clk 0:03:02]}  Nc6 {[%clk 0:03:03]} 8. Qd2 {[%clk 0:03:03]}  O-O {[%clk 0:03:03]} 9. O-O-O {[%clk 0:03:03]}  Rb8 {[%clk 0:03:02]} 10. h4 {[%clk 0:03:01]}  h5 {[%clk 0:03:01]} 11. Bh6 {[%clk 0:02:56]}  Bxh6 {[%clk 0:02:47]} 12. Qxh6 {[%clk 0:02:55]}  Nxd4 {[%clk 0:02:46]} 13. Rxd4 {[%clk 0:02:54]}  b5 {[%clk 0:02:47]} 14. e5 {[%clk 0:02:52]}  Nh7 {[%clk 0:02:43]} 15. exd6 {[%clk 0:02:45]}  e5 {[%clk 0:02:27]} 16. Rd1 {[%clk 0:02:43]}  b4 {[%clk 0:02:21]} 17. Ne4 {[%clk 0:02:42]}  Be6 {[%clk 0:02:19]} 18. g4 {[%clk 0:02:39]}  b3 {[%clk 0:01:46]} 19. axb3 {[%clk 0:02:36]}  Qa5 {[%clk 0:01:44]} 20. Kb1 {[%clk 0:02:31]}  Rxb3 {[%clk 0:01:39]} 21. cxb3 {[%clk 0:02:18]}  Bxb3 {[%clk 0:01:39]} 22. Nc3 {[%clk 0:02:18]}  Bxd1 {[%clk 0:01:26]} 23. Nxd1 {[%clk 0:02:18]}  hxg4 {[%clk 0:01:19]} 24. Bc4 {[%clk 0:02:03]}  Qc5 {[%clk 0:00:58]} 25. Qxg6+ {[%clk 0:02:01]}  Kh8 {[%clk 0:00:59]} 26. Qd3 {[%clk 0:01:59]}  gxf3 {[%clk 0:00:57]} 27. Ne3 {[%clk 0:01:57]}  Nf6 {[%clk 0:00:47]} 28. Qf5 {[%clk 0:01:42]}  Qxd6 {[%clk 0:00:46]} 29. Rd1 {[%clk 0:01:40]}  Qc6 {[%clk 0:00:39]} 30. Qxe5 {[%clk 0:01:35]}  Re8 {[%clk 0:00:33]} 31. Qg5 {[%clk 0:01:25]}  Nh7 {[%clk 0:00:14]} 32. Qf4 {[%clk 0:01:20]}  Qf6 {[%clk 0:00:12]} 33. Nf5 {[%clk 0:01:15]}  a5 {[%clk 0:00:08]} 34. Qxf3 {[%clk 0:01:13]}  Rb8 {[%clk 0:00:08]} 35. Nd4 {[%clk 0:01:08]}  Qg7 {[%clk 0:00:05]} 36. Qc3 {[%clk 0:01:05]}  a4 {[%clk 0:00:05]} 37. Nb5 {[%clk 0:01:03]}  Nf6 {[%clk 0:00:04]} 38. Rf1 {[%clk 0:01:01]}  Ne4 {[%clk 0:00:03]} 39. Qxg7+ {[%clk 0:01:00]}  Kxg7 {[%clk 0:00:04]} 40. Rxf7+ {[%clk 0:00:58]}  Kg6 {[%clk 0:00:03]} 41. Rd7 {[%clk 0:00:58]}  Kh5 {[%clk 0:00:01]} 42. Ka2 {[%clk 0:00:57]}  a3 {[%clk 0:00:01]} 43. Kxa3 {[%clk 0:00:55]}  Nf6 {[%clk 0:00:01]} 44. Rd4 {[%clk 0:00:54]}  Kg6 {[%clk 0:00:01]} 45. Nd6 {[%clk 0:00:54]}  Ra8+ {[%clk 0:00:01]} 46. Kb4 {[%clk 0:00:53]}  Rd8 {[%clk 0:00:01]} 47. Kc3 {[%clk 0:00:53]}  Rxd6 {[%clk 0:00:01]} 48. Bd3+ {[%clk 0:00:51]}  Ne4+ {[%clk 0:00:00]} 49. Bxe4+ {[%clk 0:00:50]} 1-0


[Site "https://www.chess.com"]

[Event "Titled Tuesday Blitz August 08 Early 2023"]
[White "Zhigalko, Sergei"]
[Black "Fus, Jakub"]
[WhiteFideId "13502956"]
[BlackFideId "1193023"]
[WhiteElo "2904"]
[BlackElo "2681"]
[Result "1-0"]
[Round "10"]
[TimeControl "180+1"]
[Date "2023.08.08"]
[WhiteClock "0:00:02"]
[BlackClock "0:00:00"]
[Board "28"]

1. e4 {[%clk 0:03:00]}  e6 {[%clk 0:02:59]} 2. d4 {[%clk 0:03:01]}  d5 {[%clk 0:03:00]} 3. e5 {[%clk 0:03:01]}  c5 {[%clk 0:03:00]} 4. c3 {[%clk 0:03:02]}  Nc6 {[%clk 0:03:00]} 5. Nf3 {[%clk 0:03:03]}  Bd7 {[%clk 0:03:01]} 6. Be2 {[%clk 0:03:02]}  Nge7 {[%clk 0:03:01]} 7. Na3 {[%clk 0:03:02]}  cxd4 {[%clk 0:03:00]} 8. cxd4 {[%clk 0:03:03]}  Nf5 {[%clk 0:03:01]} 9. Nc2 {[%clk 0:03:04]}  Be7 {[%clk 0:03:01]} 10. O-O {[%clk 0:03:04]}  O-O {[%clk 0:03:02]} 11. Bd3 {[%clk 0:03:04]}  f6 {[%clk 0:03:02]} 12. Bxf5 {[%clk 0:03:02]}  exf5 {[%clk 0:03:03]} 13. Bf4 {[%clk 0:03:00]}  Be8 {[%clk 0:03:03]} 14. exf6 {[%clk 0:02:49]}  Bxf6 {[%clk 0:03:04]} 15. Ne5 {[%clk 0:02:49]}  Bxe5 {[%clk 0:03:03]} 16. Bxe5 {[%clk 0:02:50]}  f4 {[%clk 0:02:44]} 17. Qg4 {[%clk 0:02:40]}  Bg6 {[%clk 0:02:44]} 18. Rac1 {[%clk 0:02:30]}  Qc8 {[%clk 0:02:43]} 19. h3 {[%clk 0:02:01]}  Nxe5 {[%clk 0:01:32]} 20. dxe5 {[%clk 0:01:59]}  Bxc2 {[%clk 0:01:32]} 21. Qe2 {[%clk 0:02:00]}  f3 {[%clk 0:01:29]} 22. Qxc2 {[%clk 0:01:58]}  Qe6 {[%clk 0:01:25]} 23. Rfe1 {[%clk 0:01:37]}  fxg2 {[%clk 0:01:23]} 24. Kxg2 {[%clk 0:01:37]}  Rf5 {[%clk 0:01:18]} 25. Re3 {[%clk 0:00:40]}  Raf8 {[%clk 0:01:17]} 26. Rf1 {[%clk 0:00:40]}  Qg6+ {[%clk 0:00:46]} 27. Rg3 {[%clk 0:00:34]}  Qe6 {[%clk 0:00:44]} 28. Qc7 {[%clk 0:00:29]}  Qxe5 {[%clk 0:00:32]} 29. Qxb7 {[%clk 0:00:27]}  Qe4+ {[%clk 0:00:32]} 30. Kg1 {[%clk 0:00:26]}  R5f7 {[%clk 0:00:28]} 31. Qb5 {[%clk 0:00:15]}  h5 {[%clk 0:00:23]} 32. Qd3 {[%clk 0:00:10]}  Qf4 {[%clk 0:00:17]} 33. Qxd5 {[%clk 0:00:08]}  Qh4 {[%clk 0:00:08]} 34. Qg5 {[%clk 0:00:03]}  Qd4 {[%clk 0:00:05]} 35. Qe3 {[%clk 0:00:01]}  Qxb2 {[%clk 0:00:05]} 36. a3 {[%clk 0:00:02]}  Qf6 {[%clk 0:00:04]} 37. Kg2 {[%clk 0:00:02]}  Qf5 {[%clk 0:00:03]} 38. Kg1 {[%clk 0:00:02]}  Qc8 {[%clk 0:00:03]} 39. Qd4 {[%clk 0:00:02]}  Rf3 {[%clk 0:00:00]} 40. Rxg7+ {[%clk 0:00:02]} 1-0


[Site "https://www.chess.com"]

[Event "Titled Tuesday Blitz August 08 Early 2023"]
[White "Rychagov, Andrey"]
[Black "Krzyzanowski, Marcin"]
[WhiteFideId "4119932"]
[BlackFideId "1132199"]
[WhiteElo "2665"]
[BlackElo "2798"]
[Result "1-0"]
[Round "10"]
[TimeControl "180+1"]
[Date "2023.08.08"]
[WhiteClock "0:00:19"]
[BlackClock "0:00:08"]
[Board "31"]

1. d4 {[%clk 0:03:00]}  Nf6 {[%clk 0:02:58]} 2. c4 {[%clk 0:03:00]}  e6 {[%clk 0:02:59]} 3. Nf3 {[%clk 0:03:00]}  c5 {[%clk 0:02:56]} 4. d5 {[%clk 0:03:00]}  b5 {[%clk 0:02:55]} 5. dxe6 {[%clk 0:03:00]}  fxe6 {[%clk 0:02:55]} 6. cxb5 {[%clk 0:03:00]}  d5 {[%clk 0:02:55]} 7. e3 {[%clk 0:02:56]}  Bd6 {[%clk 0:02:43]} 8. b3 {[%clk 0:02:56]}  O-O {[%clk 0:02:42]} 9. Bb2 {[%clk 0:02:56]}  Nbd7 {[%clk 0:02:42]} 10. Nbd2 {[%clk 0:02:56]}  Bb7 {[%clk 0:02:40]} 11. Be2 {[%clk 0:02:55]}  Qe7 {[%clk 0:02:38]} 12. O-O {[%clk 0:02:55]}  Rad8 {[%clk 0:02:37]} 13. Qc2 {[%clk 0:02:54]}  Bb8 {[%clk 0:02:27]} 14. e4 {[%clk 0:02:47]}  d4 {[%clk 0:02:22]} 15. Bd3 {[%clk 0:02:41]}  Ng4 {[%clk 0:02:19]} 16. g3 {[%clk 0:02:34]}  Rf6 {[%clk 0:01:55]} 17. h3 {[%clk 0:02:31]}  Nge5 {[%clk 0:01:42]} 18. Nxe5 {[%clk 0:02:30]}  Nxe5 {[%clk 0:01:43]} 19. f4 {[%clk 0:02:30]}  Rg6 {[%clk 0:01:29]} 20. Kh2 {[%clk 0:02:18]}  h5 {[%clk 0:00:43]} 21. Nc4 {[%clk 0:02:06]}  Nxd3 {[%clk 0:00:35]} 22. Qxd3 {[%clk 0:02:06]}  h4 {[%clk 0:00:33]} 23. g4 {[%clk 0:02:04]}  Rf8 {[%clk 0:00:32]} 24. e5 {[%clk 0:02:04]}  Rh6 {[%clk 0:00:30]} 25. Rf2 {[%clk 0:01:44]}  Qd7 {[%clk 0:00:30]} 26. a4 {[%clk 0:01:17]}  g5 {[%clk 0:00:28]} 27. Rg1 {[%clk 0:00:49]}  Qd5 {[%clk 0:00:26]} 28. Bc1 {[%clk 0:00:46]}  Rh7 {[%clk 0:00:23]} 29. Bd2 {[%clk 0:00:25]}  Rhf7 {[%clk 0:00:23]} 30. Qg6+ {[%clk 0:00:25]}  Rg7 {[%clk 0:00:24]} 31. Qd3 {[%clk 0:00:25]}  gxf4 {[%clk 0:00:20]} 32. Rxf4 {[%clk 0:00:22]}  Rxf4 {[%clk 0:00:20]} 33. Bxf4 {[%clk 0:00:23]}  Rf7 {[%clk 0:00:20]} 34. Qg6+ {[%clk 0:00:22]}  Kf8 {[%clk 0:00:19]} 35. Bh6+ {[%clk 0:00:20]}  Ke8 {[%clk 0:00:16]} 36. Qg8+ {[%clk 0:00:19]}  Ke7 {[%clk 0:00:13]} 37. Bg5+ {[%clk 0:00:19]}  Kd7 {[%clk 0:00:08]} 38. Qd8# {[%clk 0:00:19]} 1-0


[Site "https://www.chess.com"]

[Event "Titled Tuesday Blitz August 08 Early 2023"]
[White "Freitag, Manfred"]
[Black "Bauman_Guy"]
[WhiteFideId "1602004"]
[WhiteElo "2648"]
[BlackElo "2795"]
[Result "0-1"]
[Round "10"]
[TimeControl "180+1"]
[Date "2023.08.08"]
[WhiteClock "0:01:19"]
[BlackClock "0:02:07"]
[Board "33"]

1. e4 {[%clk 0:03:00]}  c5 {[%clk 0:03:00]} 2. Nf3 {[%clk 0:03:00]}  e6 {[%clk 0:03:00]} 3. d4 {[%clk 0:03:00]}  cxd4 {[%clk 0:03:00]} 4. Nxd4 {[%clk 0:03:01]}  Nc6 {[%clk 0:03:01]} 5. Nc3 {[%clk 0:03:01]}  Nf6 {[%clk 0:03:01]} 6. Ndb5 {[%clk 0:03:01]}  Bc5 {[%clk 0:03:01]} 7. Be3 {[%clk 0:02:51]}  Bxe3 {[%clk 0:02:58]} 8. Nd6+ {[%clk 0:02:47]}  Ke7 {[%clk 0:02:57]} 9. fxe3 {[%clk 0:02:48]}  a6 {[%clk 0:02:53]} 10. Qd2 {[%clk 0:02:46]}  Qc7 {[%clk 0:02:51]} 11. O-O-O {[%clk 0:02:46]}  b5 {[%clk 0:02:51]} 12. a3 {[%clk 0:02:40]}  Rb8 {[%clk 0:02:51]} 13. g4 {[%clk 0:02:39]}  h6 {[%clk 0:02:39]} 14. h4 {[%clk 0:02:36]}  Nxg4 {[%clk 0:02:37]} 15. Rg1 {[%clk 0:02:33]}  h5 {[%clk 0:02:36]} 16. Be2 {[%clk 0:02:22]}  Nce5 {[%clk 0:02:37]} 17. Nf5+ {[%clk 0:01:57]}  Kf8 {[%clk 0:02:30]} 18. Nd6 {[%clk 0:01:50]}  f6 {[%clk 0:02:26]} 19. Bxg4 {[%clk 0:01:44]}  hxg4 {[%clk 0:02:25]} 20. Qf2 {[%clk 0:01:41]}  Rb6 {[%clk 0:02:14]} 21. Nxc8 {[%clk 0:01:38]}  Qxc8 {[%clk 0:02:14]} 22. Ne2 {[%clk 0:01:29]}  b4 {[%clk 0:02:08]} 23. axb4 {[%clk 0:01:29]}  Rxb4 {[%clk 0:02:07]} 24. Rd4 {[%clk 0:01:25]}  Rxd4 {[%clk 0:02:06]} 25. exd4 {[%clk 0:01:19]}  Nd3+ {[%clk 0:02:07]} 0-1


[Site "https://www.chess.com"]

[Event "Titled Tuesday Blitz August 08 Early 2023"]
[White "Rahman, Masruri"]
[Black "Ovchinnikov, Vsevolod"]
[WhiteFideId "7101163"]
[BlackFideId "24176842"]
[WhiteElo "2784"]
[BlackElo "2643"]
[Result "1-0"]
[Round "10"]
[TimeControl "180+1"]
[Date "2023.08.08"]
[WhiteClock "0:01:27"]
[BlackClock "0:00:00"]
[Board "34"]

1. d4 {[%clk 0:03:00]}  Nf6 {[%clk 0:03:00]} 2. Bf4 {[%clk 0:03:00]}  g6 {[%clk 0:02:59]} 3. Nc3 {[%clk 0:03:00]}  Bg7 {[%clk 0:03:00]} 4. e4 {[%clk 0:03:00]}  d6 {[%clk 0:03:00]} 5. f3 {[%clk 0:03:01]}  Nc6 {[%clk 0:02:55]} 6. Qd2 {[%clk 0:02:59]}  Nh5 {[%clk 0:02:52]} 7. Be3 {[%clk 0:02:58]}  e5 {[%clk 0:02:53]} 8. Nge2 {[%clk 0:02:58]}  f5 {[%clk 0:02:46]} 9. exf5 {[%clk 0:02:57]}  gxf5 {[%clk 0:02:45]} 10. d5 {[%clk 0:02:57]}  Ne7 {[%clk 0:02:44]} 11. Bh6 {[%clk 0:02:58]}  Ng6 {[%clk 0:02:31]} 12. Bxg7 {[%clk 0:02:53]}  Nxg7 {[%clk 0:02:32]} 13. h4 {[%clk 0:02:48]}  h5 {[%clk 0:02:19]} 14. O-O-O {[%clk 0:02:47]}  Nxh4 {[%clk 0:01:20]} 15. f4 {[%clk 0:02:45]}  e4 {[%clk 0:01:15]} 16. Qd4 {[%clk 0:02:36]}  Rh7 {[%clk 0:01:11]} 17. Qc4 {[%clk 0:02:29]}  a6 {[%clk 0:00:57]} 18. Nxe4 {[%clk 0:02:29]}  Ng6 {[%clk 0:00:14]} 19. Ng5 {[%clk 0:02:23]}  Rh8 {[%clk 0:00:15]} 20. Qc3 {[%clk 0:02:20]}  Kf8 {[%clk 0:00:13]} 21. g3 {[%clk 0:02:13]}  Bd7 {[%clk 0:00:11]} 22. Nd4 {[%clk 0:02:13]}  Rc8 {[%clk 0:00:10]} 23. Bd3 {[%clk 0:02:11]}  Kg8 {[%clk 0:00:09]} 24. Nde6 {[%clk 0:02:08]}  Qe7 {[%clk 0:00:08]} 25. Rde1 {[%clk 0:02:05]}  Rh6 {[%clk 0:00:07]} 26. Nc5 {[%clk 0:01:56]}  Qd8 {[%clk 0:00:06]} 27. Nxd7 {[%clk 0:01:56]}  Qxd7 {[%clk 0:00:07]} 28. Qf6 {[%clk 0:01:54]}  Rf8 {[%clk 0:00:07]} 29. Qc3 {[%clk 0:01:53]}  h4 {[%clk 0:00:06]} 30. Ne6 {[%clk 0:01:49]}  Rf7 {[%clk 0:00:06]} 31. gxh4 {[%clk 0:01:47]}  Rxh4 {[%clk 0:00:06]} 32. Rhg1 {[%clk 0:01:40]}  Rh6 {[%clk 0:00:06]} 33. Re2 {[%clk 0:01:32]}  Re7 {[%clk 0:00:06]} 34. Reg2 {[%clk 0:01:31]}  Nxe6 {[%clk 0:00:05]} 35. Bxf5 {[%clk 0:01:29]}  Qe8 {[%clk 0:00:05]} 36. Bxg6 {[%clk 0:01:28]}  Rxg6 {[%clk 0:00:00]} 37. Rxg6+ {[%clk 0:01:27]} 1-0


[Site "https://www.chess.com"]

[Event "Titled Tuesday Blitz August 08 Early 2023"]
[White "Materia, Marco"]
[Black "Garcia Ramos, Daniel"]
[WhiteFideId "45150451"]
[BlackFideId "32010311"]
[WhiteElo "2750"]
[BlackElo "2635"]
[Result "1-0"]
[Round "10"]
[TimeControl "180+1"]
[Date "2023.08.08"]
[WhiteClock "0:01:26"]
[BlackClock "0:00:01"]
[Board "36"]

1. d4 {[%clk 0:03:00]}  d5 {[%clk 0:02:59]} 2. c4 {[%clk 0:03:01]}  e6 {[%clk 0:02:54]} 3. Nf3 {[%clk 0:03:01]}  Nf6 {[%clk 0:02:55]} 4. Nc3 {[%clk 0:03:01]}  dxc4 {[%clk 0:02:51]} 5. e3 {[%clk 0:03:00]}  a6 {[%clk 0:02:51]} 6. a4 {[%clk 0:03:00]}  Bb4 {[%clk 0:02:49]} 7. Bxc4 {[%clk 0:03:00]}  O-O {[%clk 0:02:49]} 8. O-O {[%clk 0:03:00]}  b6 {[%clk 0:02:46]} 9. Ne5 {[%clk 0:02:47]}  Bb7 {[%clk 0:02:45]} 10. Qe2 {[%clk 0:02:33]}  Qe7 {[%clk 0:02:37]} 11. Nd3 {[%clk 0:02:28]}  Bxc3 {[%clk 0:01:38]} 12. bxc3 {[%clk 0:02:27]}  Nbd7 {[%clk 0:01:39]} 13. Ba3 {[%clk 0:02:20]}  c5 {[%clk 0:01:39]} 14. a5 {[%clk 0:02:15]}  Ne4 {[%clk 0:00:53]} 15. axb6 {[%clk 0:02:14]}  Nxc3 {[%clk 0:00:52]} 16. Qh5 {[%clk 0:01:52]}  Ne4 {[%clk 0:00:28]} 17. dxc5 {[%clk 0:01:42]}  g6 {[%clk 0:00:19]} 18. c6 {[%clk 0:01:37]}  Qxa3 {[%clk 0:00:10]} 19. Rxa3 {[%clk 0:01:37]}  gxh5 {[%clk 0:00:10]} 20. cxb7 {[%clk 0:01:37]}  Rab8 {[%clk 0:00:10]} 21. Bxa6 {[%clk 0:01:38]}  Ndc5 {[%clk 0:00:05]} 22. Nxc5 {[%clk 0:01:32]}  Nxc5 {[%clk 0:00:06]} 23. Rb1 {[%clk 0:01:28]}  Nxb7 {[%clk 0:00:02]} 24. Bxb7 {[%clk 0:01:27]}  Rxb7 {[%clk 0:00:02]} 25. Ra7 {[%clk 0:01:28]}  Rfb8 {[%clk 0:00:03]} 26. Rxb7 {[%clk 0:01:28]}  Rxb7 {[%clk 0:00:04]} 27. g3 {[%clk 0:01:27]}  Kf8 {[%clk 0:00:04]} 28. Kg2 {[%clk 0:01:28]}  Ke7 {[%clk 0:00:05]} 29. Kh3 {[%clk 0:01:29]}  Kf6 {[%clk 0:00:05]} 30. Kh4 {[%clk 0:01:29]}  Kg6 {[%clk 0:00:05]} 31. Rb5 {[%clk 0:01:28]}  f6 {[%clk 0:00:03]} 32. f4 {[%clk 0:01:27]}  h6 {[%clk 0:00:02]} 33. e4 {[%clk 0:01:26]}  e5 {[%clk 0:00:02]} 34. f5+ {[%clk 0:01:26]}  Kg7 {[%clk 0:00:02]} 35. Kxh5 {[%clk 0:01:26]}  Kh7 {[%clk 0:00:02]} 36. h4 {[%clk 0:01:26]}  Kg7 {[%clk 0:00:02]} 37. g4 {[%clk 0:01:26]}  Kh7 {[%clk 0:00:03]} 38. g5 {[%clk 0:01:26]}  hxg5 {[%clk 0:00:03]} 39. hxg5 {[%clk 0:01:27]}  Kg7 {[%clk 0:00:04]} 40. Kg4 {[%clk 0:01:25]}  Kf7 {[%clk 0:00:04]} 41. gxf6 {[%clk 0:01:25]}  Kxf6 {[%clk 0:00:04]} 42. Kf3 {[%clk 0:01:26]}  Kg5 {[%clk 0:00:03]} 43. Ke3 {[%clk 0:01:26]}  Kf6 {[%clk 0:00:03]} 44. Kd3 {[%clk 0:01:26]}  Ke7 {[%clk 0:00:02]} 45. Rxe5+ {[%clk 0:01:25]}  Kf6 {[%clk 0:00:03]} 46. Rb5 {[%clk 0:01:26]}  Kg5 {[%clk 0:00:02]} 47. Ke3 {[%clk 0:01:26]}  Kg4 {[%clk 0:00:01]} 48. f6 {[%clk 0:01:26]} 1-0


[Site "https://www.chess.com"]

[Event "Titled Tuesday Blitz August 08 Early 2023"]
[White "Thecourseoisildur"]
[Black "Timmermans, Mark"]
[BlackFideId "1026399"]
[WhiteElo "2607"]
[BlackElo "2728"]
[Result "0-1"]
[Round "10"]
[TimeControl "180+1"]
[Date "2023.08.08"]
[WhiteClock "0:00:00"]
[BlackClock "0:00:30"]
[Board "42"]

1. d4 {[%clk 0:03:00]}  Nf6 {[%clk 0:02:54]} 2. c4 {[%clk 0:03:01]}  e6 {[%clk 0:02:54]} 3. Nf3 {[%clk 0:03:01]}  d5 {[%clk 0:02:52]} 4. g3 {[%clk 0:03:00]}  Be7 {[%clk 0:02:52]} 5. Bg2 {[%clk 0:03:00]}  O-O {[%clk 0:02:52]} 6. O-O {[%clk 0:03:00]}  dxc4 {[%clk 0:02:52]} 7. Qc2 {[%clk 0:03:00]}  b5 {[%clk 0:02:52]} 8. a4 {[%clk 0:02:59]}  b4 {[%clk 0:02:50]} 9. Qxc4 {[%clk 0:02:56]}  Ba6 {[%clk 0:02:50]} 10. Qc2 {[%clk 0:02:56]}  Nbd7 {[%clk 0:02:50]} 11. b3 {[%clk 0:02:56]}  c5 {[%clk 0:02:50]} 12. Bb2 {[%clk 0:02:56]}  Rc8 {[%clk 0:02:50]} 13. Qd1 {[%clk 0:02:50]}  cxd4 {[%clk 0:02:44]} 14. Nxd4 {[%clk 0:02:49]}  Nc5 {[%clk 0:02:38]} 15. Nd2 {[%clk 0:02:42]}  Qb6 {[%clk 0:02:31]} 16. a5 {[%clk 0:02:27]}  Qc7 {[%clk 0:02:28]} 17. Nc6 {[%clk 0:02:28]}  Bb5 {[%clk 0:02:10]} 18. Nd4 {[%clk 0:01:38]}  Ba6 {[%clk 0:01:59]} 19. Nc6 {[%clk 0:01:21]}  Bb7 {[%clk 0:01:48]} 20. Be5 {[%clk 0:01:16]}  Bd6 {[%clk 0:01:43]} 21. Bxd6 {[%clk 0:01:08]}  Qxd6 {[%clk 0:01:44]} 22. Nxb4 {[%clk 0:01:00]}  Bxg2 {[%clk 0:01:37]} 23. Kxg2 {[%clk 0:01:01]}  Nxb3 {[%clk 0:01:37]} 24. Qxb3 {[%clk 0:00:50]}  Qxd2 {[%clk 0:01:37]} 25. Ra2 {[%clk 0:00:43]}  Qg5 {[%clk 0:01:28]} 26. Qf3 {[%clk 0:00:28]}  Rc4 {[%clk 0:01:23]} 27. Nc2 {[%clk 0:00:12]}  Nd5 {[%clk 0:01:18]} 28. Ne3 {[%clk 0:00:09]}  Rc3 {[%clk 0:01:16]} 29. Rb1 {[%clk 0:00:04]}  Nxe3+ {[%clk 0:01:01]} 30. fxe3 {[%clk 0:00:05]}  Rxe3 {[%clk 0:01:02]} 31. Qb7 {[%clk 0:00:05]}  Qe5 {[%clk 0:01:03]} 32. Rbb2 {[%clk 0:00:06]}  Qh5 {[%clk 0:00:51]} 33. Qxa7 {[%clk 0:00:04]}  Qe5 {[%clk 0:00:51]} 34. Qb7 {[%clk 0:00:03]}  h5 {[%clk 0:00:51]} 35. a6 {[%clk 0:00:03]}  h4 {[%clk 0:00:49]} 36. a7 {[%clk 0:00:00]}  h3+ {[%clk 0:00:30]} 0-1


[Site "https://www.chess.com"]